bitfinex-derivatives/quotes_BTCF0:USTF0_20240910
["timestamp","ask_amount","ask_price","bid_price","bid_amount"]
[1725975829684,0.0041,56843.0,56829.0,0.186878]
[1725975829966,0.0041,56843.0,56830.0,0.087977]
[1725975829967,0.10332142,56836.0,56830.0,0.087977]
[1725975830160,0.0285246,56836.0,56830.0,0.087977]
[1725975830359,0.0285246,56835.0,56831.0,0.1023]
[1725975830569,0.087974,56832.0,56831.0,0.0406784]
[1725975830766,0.087974,56832.0,56829.0,0.0989]
[1725975831568,0.22,56838.0,56819.0,0.22]
[1725975831569,0.19328942,56836.0,56819.0,0.22]
[1725975831768,0.11949446,56835.0,56827.0,0.08798]
[1725975831960,0.02852546,56834.0,56819.0,0.0961]
[1725975832164,0.003,56835.0,56834.0,0.087971]
[1725975832365,0.003,56835.0,56830.0,0.087977]
[1725975832759,0.003,56835.0,56831.0,0.087975]
[1725975832959,0.003,56835.0,56828.0,0.22]
[1725975833160,0.003,56835.0,56834.0,0.087971]
[1725975833365,0.003,56835.0,56834.0,0.615811]
[1725975833562,0.0041,56852.0,56834.0,0.6]
[1725975833861,0.32972,56853.0,56845.0,0.22]
[1725975834072,0.32972,56853.0,56844.0,0.087955]
[1725975834073,0.087939,56855.0,56841.0,0.22]
[1725975834272,0.10332142,56861.0,56851.0,0.22]
[1725975834472,0.10332142,56864.0,56856.0,0.087936]
[1725975834663,0.087929,56861.0,56854.0,0.08794]
[1725975834869,0.10332142,56865.0,56852.0,0.1011]
[1725975835169,0.08793,56860.0,56852.0,0.1011]
[1725975835372,0.087933,56859.0,56852.0,0.1011]
[1725975835563,0.001,56855.0,56852.0,0.1011]
[1725975836181,0.001,56855.0,56846.0,0.087952]
[1725975836468,0.001,56855.0,56842.0,0.1038]
[1725975836469,0.088938,56855.0,56842.0,0.1038]
[1725975836968,0.001,56855.0,56842.0,0.1038]
[1725975837170,0.001,56855.0,56848.0,0.087948]
[1725975837360,0.001,56855.0,56842.0,0.1038]
[1725975837361,0.001,56855.0,56851.0,0.22]
[1725975837566,0.001,56855.0,56852.0,0.006]
[1725975837873,0.001,56865.0,56852.0,0.006]
[1725975838073,0.001,56865.0,56860.0,0.22]
[1725975838261,0.3274,56873.0,56864.0,0.22]
[1725975838462,0.22,56880.0,56864.0,0.22]
[1725975838669,0.087906,56876.0,56868.0,0.087917]
[1725975838874,0.08791,56874.0,56864.0,0.307924]
[1725975839064,0.0968,56882.0,56862.0,0.1038]
[1725975839065,0.22,56876.0,56862.0,0.1038]
[1725975839667,0.08792,56868.0,56864.0,0.001]
[1725975839870,0.008,56873.0,56864.0,0.001]
[1725975840075,0.087916,56870.0,56864.0,0.001]
[1725975840376,0.008,56873.0,56864.0,0.001]
[1725975840565,0.087912,56872.0,56864.0,0.088923]
[1725975840877,0.087912,56872.0,56864.0,0.091923]
[1725975841073,0.087923,56865.0,56864.0,0.004]
[1725975841269,0.087923,56865.0,56864.0,0.001]
[1725975841468,0.087923,56865.0,56864.0,0.004]
[1725975841671,0.087919,56868.0,56864.0,0.003]
[1725975841873,0.087923,56865.0,56864.0,0.003]
[1725975842276,0.087926,56863.0,56862.0,0.006]
[1725975842466,0.087926,56863.0,56852.0,0.22]
[1725975842681,0.087915,56871.0,56856.0,0.22]
[1725975842874,0.3274,56872.0,56865.0,0.22]
[1725975843074,1.09428001,56879.0,56865.0,0.22]
[1725975843075,0.87428001,56879.0,56865.0,0.22]
[1725975843376,0.22,56870.0,56858.0,0.087933]
[1725975843584,0.087928,56862.0,56858.0,0.087933]
[1725975843895,0.087928,56862.0,56859.0,0.087931]
[1725975844083,0.22,56861.0,56846.0,0.099]
[1725975844269,0.08795,56847.0,56840.0,0.18996]
[1725975844471,0.22,56847.0,56836.0,0.0979]
[1725975844673,0.087959,56842.0,56837.0,0.087966]
[1725975844879,0.087959,56842.0,56836.0,0.0979]
[1725975844880,0.22,56847.0,56836.0,0.0979]
[1725975845070,0.10332142,56849.0,56836.0,0.0393817]
[1725975845266,0.02851969,56848.0,56837.0,0.087966]
[1725975845475,0.087956,56844.0,56840.0,0.013]
[1725975845684,0.087956,56844.0,56838.0,0.0393526]
[1725975845886,0.002,56847.0,56838.0,0.22]
[1725975846075,0.002,56847.0,56842.0,0.22]
[1725975846675,0.002,56847.0,56846.0,0.307952]
[1725975847487,0.001,56848.0,56842.0,0.087958]
[1725975847879,0.001,56848.0,56837.0,0.001]
[1725975848081,0.32432142,56848.0,56837.0,0.001]
[1725975848281,0.22,56844.0,56837.0,0.001]
[1725975848482,0.08797,56835.0,56824.0,0.22]
[1725975848677,0.22,56839.0,56828.0,0.22]
[1725975848678,0.087963,56839.0,56828.0,0.22]
[1725975848985,0.10332142,56842.0,56835.0,0.087969]
[1725975849181,0.02852163,56841.0,56837.0,0.234]
[1725975849482,0.10332142,56843.0,56837.0,0.234]
[1725975849689,0.02852034,56842.0,56837.0,0.234]
[1725975849983,0.19127642,56845.0,56838.0,0.087964]
[1725975850181,0.02852009,56844.0,56837.0,0.014]
[1725975850378,0.10332142,56844.0,56837.0,0.014]
[1725975850884,0.13184151,56844.0,56837.0,0.014]
[1725975851086,0.001,56842.0,56838.0,0.087964]
[1725975851274,0.001,56842.0,56837.0,0.234]
[1725975851275,0.02852009,56841.0,56837.0,0.234]
[1725975851477,0.001,56839.0,56837.0,0.22]
[1725975851686,0.001,56839.0,56838.0,0.087964]
[1725975851877,0.001,56839.0,56838.0,1.318864]
[1725975852079,0.002,56844.0,56842.0,0.087958]
[1725975852279,0.0285188,56843.0,56842.0,0.087958]
[1725975852486,0.0285188,56843.0,56838.0,0.1031]
[1725975852487,0.1164758,56843.0,56838.0,0.1031]
[1725975852686,0.02851843,56842.0,56838.0,0.1031]
[1725975852973,0.087957,56843.0,56838.0,0.1031]
[1725975853375,0.002,56844.0,56838.0,0.1031]
[1725975853376,0.087958,56842.0,56838.0,0.1031]
[1725975853584,0.087958,56842.0,56837.0,0.014]
[1725975853892,0.002,56844.0,56837.0,0.014]
[1725975853893,0.001,56839.0,56837.0,0.234]
[1725975854087,0.001,56839.0,56838.0,0.307964]
[1725975854592,0.001,56843.0,56842.0,0.087958]
[1725975854777,0.001,56843.0,56842.0,0.307958]
[1725975855080,0.001,56844.0,56842.0,0.307958]
[1725975855081,0.001,56844.0,56843.0,0.087957]
[1725975855288,0.087946,56850.0,56845.0,0.087953]
[1725975855679,0.3274,56853.0,56842.0,0.22]
[1725975855985,0.087943,56853.0,56846.0,0.087951]
[1725975856284,0.087943,56852.0,56847.0,0.08795]
[1725975856489,0.087938,56856.0,56845.0,0.001]
[1725975856691,0.08794,56854.0,56847.0,0.22]
[1725975856887,0.415328,56862.0,56847.0,0.22]
[1725975857186,0.087934,56858.0,56846.0,0.087952]
[1725975857387,0.087942,56853.0,56847.0,0.087949]
[1725975857590,0.087934,56858.0,56847.0,0.087949]
[1725975858186,0.087947,56850.0,56846.0,0.22]
[1725975858581,0.087947,56850.0,56846.0,0.222]
[1725975858778,0.3274,56862.0,56847.0,0.001]
[1725975858986,0.087949,56848.0,56847.0,0.001]
[1725975859381,0.22,56858.0,56847.0,0.001]
[1725975859585,0.087949,56848.0,56847.0,0.001]
[1725975860083,0.087949,56848.0,56847.0,0.014]
[1725975860285,0.088946,56850.0,56847.0,0.014]
[1725975860886,0.087948,56849.0,56847.0,0.014]
[1725975861082,0.087949,56848.0,56847.0,0.014]
[1725975861289,0.087948,56849.0,56846.0,0.001]
[1725975861290,0.08795,56847.0,56846.0,0.001]
[1725975861981,0.001,56850.0,56846.0,0.001]
[1725975862182,0.001,56848.0,56847.0,0.012]
[1725975862492,0.088949,56848.0,56847.0,0.012]
[1725975862693,0.088949,56848.0,56847.0,0.001]
[1725975862694,0.001,56848.0,56847.0,0.001]
[1725975862889,0.001,56848.0,56847.0,0.08895]
[1725975863088,0.001,56847.0,56846.0,0.308952]
[1725975864701,0.08895,56847.0,56846.0,0.001]
[1725975864890,0.22,56857.0,56844.0,0.087954]
[1725975865198,0.002,56848.0,56847.0,0.01]
[1725975865794,0.08794,56854.0,56846.0,0.009]
[1725975865990,0.001,56847.0,56846.0,0.317952]
[1725975866686,0.002,56848.0,56847.0,0.09795]
[1725975867194,0.087931,56860.0,56854.0,0.087939]
[1725975867390,0.20562142,56866.0,56851.0,0.22]
[1725975867391,0.087935,56858.0,56851.0,0.22]
[1725975867586,0.08793,56860.0,56847.0,0.2102]
[1725975867787,0.087941,56854.0,56847.0,0.29815]
[1725975868191,0.02851448,56853.0,56852.0,0.087941]
[1725975868394,0.10332142,56857.0,56852.0,0.087941]
[1725975868597,0.087937,56856.0,56851.0,0.22]
[1725975868796,0.087945,56851.0,56847.0,0.2002]
[1725975869096,0.10332142,56855.0,56847.0,1.5]
[1725975869296,0.087949,56848.0,56847.0,0.002]
[1725975869501,0.11646387,56848.0,56847.0,0.002]
[1725975869690,0.087949,56848.0,56847.0,0.002]
[1725975869892,0.175898,56848.0,56847.0,0.002]
[1725975870091,0.27328457,56848.0,56847.0,0.012]
[1725975870390,0.08633557,56848.0,56847.0,0.012]
[1725975870591,0.17428457,56848.0,56847.0,0.002]
[1725975870788,0.26323357,56848.0,56847.0,0.011]
[1725975871299,0.17528457,56848.0,56847.0,0.009]
[1725975871502,0.17528457,56848.0,56847.0,0.012]
[1725975872293,0.17528457,56848.0,56847.0,0.01]
[1725975872493,0.11746666,56848.0,56847.0,0.01]
[1725975872896,0.087949,56848.0,56847.0,0.003]
[1725975873204,0.087949,56848.0,56847.0,0.004]
[1725975873401,0.087949,56848.0,56847.0,0.006]
[1725975873699,0.087949,56848.0,56847.0,0.003]
[1725975875303,0.087949,56848.0,56847.0,0.002]
[1725975875498,0.087949,56848.0,56847.0,0.004]
[1725975875704,0.087949,56848.0,56847.0,0.002]
[1725975875894,0.087949,56848.0,56847.0,0.003]
[1725975876098,0.087949,56848.0,56847.0,0.08995]
[1725975876406,0.19191933,56851.0,56850.0,0.087946]
[1725975876705,0.10397433,56851.0,56850.0,0.087946]
[1725975878506,0.10397433,56851.0,56850.0,0.307946]
[1725975878704,0.10697433,56851.0,56850.0,0.307946]
[1725975879408,0.10997433,56851.0,56850.0,0.307946]
[1725975879611,0.12054165,56856.0,56855.0,0.087938]
[1725975879800,0.12054165,56856.0,56855.0,0.307938]
[1725975880099,0.12054165,56856.0,56855.0,0.835578]
[1725975880302,0.12054165,56856.0,56855.0,0.307938]
[1725975881303,0.415328,56862.0,56856.0,0.087936]
[1725975881602,0.22,56865.0,56855.0,0.001]
[1725975881804,0.02851244,56864.0,56855.0,0.001]
[1725975881998,0.087937,56856.0,56855.0,0.001]
[1725975882394,0.11645046,56856.0,56855.0,0.001]
[1725975882907,0.39398542,56856.0,56855.0,0.001]
[1725975883205,0.39398542,56856.0,56855.0,0.002]
[1725975883206,0.92162542,56856.0,56855.0,0.002]
[1725975883408,1.00956242,56856.0,56855.0,0.002]
[1725975883709,0.98811595,56856.0,56846.0,0.087952]
[1725975884004,0.98811595,56856.0,56847.0,0.08795]
[1725975884005,0.12126895,56854.0,56847.0,0.08795]
[1725975884207,0.20731737,56854.0,56840.0,0.0965]
[1725975884505,0.087949,56849.0,56846.0,0.087951]
[1725975884703,0.02851346,56848.0,56846.0,0.087951]
[1725975885004,0.11646246,56848.0,56846.0,0.087951]
[1725975885203,0.087953,56846.0,56842.0,0.087957]
[1725975885405,0.02851346,56845.0,56842.0,0.087957]
[1725975886005,0.02851346,56845.0,56840.0,0.0965]
[1725975886307,0.22,56851.0,56840.0,0.0965]
[1725975886308,0.02851346,56844.0,56840.0,0.0965]
[1725975886511,0.02851346,56843.0,56840.0,0.184461]
[1725975886810,0.001,56845.0,56842.0,0.014]
[1725975886997,0.02851941,56844.0,56843.0,0.087957]
[1725975887404,0.02851941,56844.0,56842.0,0.014]
[1725975887603,0.02851903,56843.0,56842.0,0.014]
[1725975888406,0.02851903,56843.0,56841.0,0.087959]
[1725975888608,0.02851903,56842.0,56841.0,0.087959]
[1725975889109,0.02851903,56844.0,56841.0,0.087959]
[1725975889406,0.029519,56843.0,56842.0,0.098958]
[1725975889710,0.028519,56843.0,56842.0,0.091958]
[1725975890405,0.001,56844.0,56843.0,0.087957]
[1725975890709,0.001,56844.0,56843.0,0.05267429]
[1725975891103,0.001,56844.0,56842.0,0.05267429]
[1725975891299,0.3315,56862.0,56843.0,0.158185]
[1725975891509,0.087921,56867.0,56841.0,0.54476]
[1725975891510,0.3274,56867.0,56860.0,0.22]
[1725975891713,0.08792,56867.0,56856.0,0.27267001]
[1725975892013,0.08792,56867.0,56858.0,0.05267001]
[1725975892014,0.087928,56862.0,56858.0,0.05267001]
[1725975892405,0.0975,56868.0,56860.0,0.22]
[1725975892607,0.1996,56876.0,56866.0,0.087921]
[1725975892908,0.1996,56876.0,56861.0,0.05267001]
[1725975892909,0.087916,56870.0,56862.0,0.05267001]
[1725975893109,0.22,56875.0,56862.0,0.087926]
[1725975893316,0.02851056,56874.0,56862.0,0.087926]
[1725975893505,0.087916,56870.0,56863.0,0.087926]
[1725975893707,0.087916,56870.0,56865.0,0.087922]
[1725975894113,0.01,56876.0,56869.0,0.22]
[1725975894413,0.01,56876.0,56875.0,0.36046291]
[1725975894605,0.01,56876.0,56875.0,0.88794315]
[1725975894804,0.01,56876.0,56871.0,0.070228]
[1725975894805,0.01,56876.0,56874.0,0.05255615]
[1725975895115,0.01,56876.0,56874.0,1.5]
[1725975895313,0.017,56876.0,56874.0,1.5]
[1725975895814,0.01,56876.0,56874.0,1.5]
[1725975896112,0.015,56876.0,56875.0,0.22]
[1725975896512,0.003,56876.0,56875.0,0.22]
[1725975896708,0.003,56876.0,56874.0,1.587908]
[1725975896910,0.003,56876.0,56874.0,0.087908]
[1725975897310,0.003,56876.0,56872.0,0.02236679]
[1725975897311,0.02850222,56875.0,56872.0,0.02236679]
[1725975897609,0.02850222,56875.0,56873.0,1.5]
[1725975897922,0.02850222,56875.0,56874.0,0.087909]
[1725975898103,0.02850222,56875.0,56874.0,1.12748]
[1725975898411,0.008,56876.0,56875.0,0.087907]
[1725975898612,0.3315,56894.0,56875.0,0.087907]
[1725975898613,0.3315,56894.0,56889.0,0.087884]
[1725975898814,0.08657753,56893.0,56889.0,0.22]
[1725975899009,0.02849664,56892.0,56891.0,0.087882]
[1725975899206,0.1077,56910.0,56891.0,0.72462]
[1725975899207,0.12126895,56902.0,56891.0,0.72462]
[1725975899410,0.02849201,56901.0,56892.0,0.087881]
[1725975899728,0.10347202,56908.0,56891.0,0.1973]
[1725975900022,0.0041,56910.0,56907.0,0.22]
[1725975900023,0.10347202,56909.0,56907.0,0.22]
[1725975900321,0.091954,56910.0,56907.0,0.22]
[1725975900322,0.02848781,56908.0,56907.0,0.22]
[1725975900609,0.02848781,56908.0,56907.0,0.13208529]
[1725975900814,0.02848709,56908.0,56907.0,0.13208529]
[1725975901009,0.02848709,56908.0,56902.0,0.22]
[1725975901312,0.02848709,56908.0,56891.0,0.2023]
[1725975901313,0.22,56904.0,56891.0,0.2023]
[1725975901514,0.13776189,56912.0,56891.0,0.2023]
[1725975901515,0.175762,56892.0,56891.0,0.005]
[1725975901716,0.175762,56892.0,56880.0,0.0088]
[1725975901717,0.087881,56892.0,56880.0,0.0088]
[1725975901913,0.10347067,56886.0,56880.0,0.0088]
[1725975902214,0.087898,56881.0,56880.0,0.0088]
[1725975902419,0.13196882,56885.0,56869.0,0.22]
[1725975902420,0.08791,56873.0,56869.0,0.22]
[1725975903207,0.10347067,56882.0,56869.0,0.22]
[1725975903407,0.10347067,56880.0,56869.0,0.22]
[1725975903909,0.087914,56871.0,56869.0,0.22]
[1725975904110,0.001,56873.0,56869.0,0.227]
[1725975904312,0.001,56873.0,56872.0,0.22]
[1725975904513,0.087897,56882.0,56872.0,0.74748]
[1725975904717,0.087897,56882.0,56877.0,0.22]
[1725975905219,0.10347067,56886.0,56877.0,0.22]
[1725975905419,0.001,56880.0,56877.0,0.22]
[1725975906321,0.001,56880.0,56878.0,0.52744]
[1725975906618,0.001,56880.0,56877.0,0.82]
[1725975906619,0.001,56880.0,56879.0,0.615341]
[1725975906823,0.001,56880.0,56877.0,0.229]
[1725975907219,0.087898,56881.0,56877.0,0.236]
[1725975907412,0.001,56882.0,56877.0,0.016]
[1725975907612,0.087903,56878.0,56877.0,0.016]
[1725975908026,0.087903,56878.0,56861.0,0.1047]
[1725975908027,1.12744,56878.0,56857.0,0.22]
[1725975908326,0.307912,56872.0,56857.0,0.22]
[1725975908618,0.087912,56872.0,56857.0,0.22]
[1725975908820,0.087912,56872.0,56853.0,0.02227082]
[1725975908821,0.087919,56868.0,56861.0,0.22]
[1725975909215,0.087935,56858.0,56856.0,0.22]
[1725975909425,0.087935,56858.0,56857.0,0.014]
[1725975909616,0.202,56871.0,56857.0,0.014]
[1725975909820,0.087921,56866.0,56861.0,0.22]
[1725975910025,0.202,56871.0,56861.0,0.22]
[1725975910317,0.087922,56866.0,56859.0,0.37]
[1725975910521,0.202,56871.0,56859.0,0.37]
[1725975910825,0.087926,56864.0,56859.0,0.37]
[1725975911028,0.087926,56864.0,56858.0,0.38]
[1725975911227,0.087927,56863.0,56861.0,0.014]
[1725975911437,0.087926,56864.0,56861.0,0.014]
[1725975911637,0.001,56866.0,56861.0,0.014]
[1725975911832,0.087932,56860.0,56859.0,0.006]
[1725975912341,0.087933,56859.0,56855.0,0.41216884]
[1725975912538,0.087925,56864.0,56855.0,0.41216884]
[1725975912735,0.1018,56871.0,56861.0,0.37]
[1725975912937,0.001,56871.0,56866.0,0.37]
[1725975913439,0.087902,56879.0,56866.0,0.37]
[1725975913636,0.0879,56880.0,56866.0,0.37]
[1725975913844,0.087906,56876.0,56866.0,0.37]
[1725975914042,0.3274,56889.0,56879.0,0.0879]
[1725975914243,0.09015301,56898.0,56886.0,0.37]
[1725975914434,0.0088,56895.0,56880.0,0.37]
[1725975914931,0.087894,56884.0,56880.0,1.87]
[1725975915133,0.087897,56882.0,56880.0,1.5]
[1725975915338,0.1029,56894.0,56870.0,0.37]
[1725975915339,0.087896,56883.0,56870.0,0.37]
[1725975915534,0.087896,56883.0,56868.0,0.05255615]
[1725975915535,0.087909,56874.0,56868.0,0.05255615]
[1725975915742,0.087915,56871.0,56866.0,0.087921]
[1725975916235,0.5636,56882.0,56859.0,0.38]
[1725975916236,0.087917,56869.0,56859.0,0.38]
[1725975916441,0.087917,56869.0,56858.0,0.087933]
[1725975916442,0.087924,56864.0,56858.0,0.087933]
[1725975916639,0.087924,56864.0,56859.0,0.38]
[1725975916948,0.001,56874.0,56861.0,0.087928]
[1725975917138,0.001,56874.0,56861.0,0.457928]
[1725975917732,0.001,56874.0,56862.0,0.087927]
[1725975917929,0.087921,56866.0,56862.0,0.087927]
[1725975918131,0.087928,56862.0,56858.0,0.467933]
[1725975918337,0.087921,56866.0,56858.0,0.467933]
[1725975918531,0.087921,56866.0,56859.0,0.101932]
[1725975918735,0.001,56869.0,56859.0,0.101932]
[1725975918937,0.087927,56862.0,56859.0,0.101932]
[1725975919138,0.087927,56862.0,56859.0,0.087932]
[1725975919937,0.087927,56862.0,56859.0,0.101932]
[1725975920153,0.08792,56867.0,56861.0,0.37]
[1725975920348,0.001,56866.0,56861.0,0.37]
[1725975920544,0.087924,56864.0,56859.0,0.394]
[1725975921251,0.001,56862.0,56859.0,0.394]
[1725975921447,0.001,56862.0,56859.0,0.014]
[1725975921636,0.087935,56858.0,56852.0,0.087941]
[1725975921838,0.087935,56858.0,56849.0,0.4786]
[1725975922035,0.001,56862.0,56849.0,0.4786]
[1725975922247,0.001,56862.0,56850.0,1.5]
[1725975922449,0.001,56862.0,56859.0,0.011]
[1725975922641,0.08793,56860.0,56859.0,0.011]
[1725975923052,0.08793,56860.0,56854.0,0.08794]
[1725975923053,0.087933,56859.0,56854.0,0.08794]
[1725975923247,0.087933,56859.0,56850.0,1.5]
[1725975923546,0.001,56864.0,56850.0,1.5]
[1725975923547,0.001,56864.0,56858.0,0.37]
[1725975923850,0.001,56864.0,56850.0,1.5]
[1725975923851,0.001,56864.0,56863.0,0.457926]
[1725975924151,0.3274,56875.0,56863.0,0.37]
[1725975924152,0.087909,56874.0,56863.0,0.37]
[1725975924336,0.0963,56878.0,56868.0,0.457917]
[1725975924337,0.0285085,56873.0,56868.0,0.457917]
[1725975924540,0.087914,56871.0,56868.0,0.457917]
[1725975924740,0.087914,56871.0,56868.0,0.37]
[1725975924940,0.087914,56871.0,56864.0,0.087924]
[1725975925447,0.087914,56871.0,56867.0,0.08792]
[1725975925646,0.087914,56871.0,56863.0,0.37]
[1725975925841,0.49536895,56888.0,56869.0,0.37]
[1725975925842,0.10347067,56879.0,56869.0,0.37]
[1725975926047,0.10347067,56879.0,56860.0,0.08793]
[1725975926048,0.087906,56876.0,56874.0,0.37]
[1725975926245,0.19136667,56883.0,56874.0,0.37]
[1725975926442,0.087896,56883.0,56880.0,0.37]
[1725975926639,0.10347067,56888.0,56880.0,0.37]
[1725975926851,0.087886,56889.0,56885.0,0.37]
[1725975927147,0.0964,56893.0,56885.0,0.37]
[1725975927347,0.00228001,56895.0,56890.0,0.37]
[1725975927539,0.1026,56904.0,56890.0,0.37]
[1725975927848,0.087874,56897.0,56890.0,0.37]
[1725975928036,0.1026,56904.0,56890.0,0.37]
[1725975928238,0.32968001,56907.0,56902.0,0.37]
[1725975928442,0.087853,56910.0,56903.0,0.087864]
[1725975928641,0.87408001,56913.0,56902.0,0.37]
[1725975928642,0.87408001,56913.0,56905.0,0.087861]
[1725975928843,0.8718,56913.0,56905.0,0.087861]
[1725975929044,0.8718,56913.0,56907.0,0.37]
[1725975929253,0.087842,56917.0,56908.0,0.087855]
[1725975929650,0.1026,56919.0,56908.0,0.087855]
[1725975929845,0.1026,56919.0,56901.0,0.37]
[1725975930046,0.087849,56913.0,56905.0,0.08786]
[1725975930352,0.1026,56919.0,56906.0,0.37]
[1725975930550,0.012,56917.0,56908.0,0.088856]
[1725975931253,0.02,56913.0,56908.0,0.087856]
[1725975931448,0.02,56913.0,56905.0,0.001]
[1725975931650,0.087852,56911.0,56905.0,0.001]
[1725975932044,0.009,56913.0,56906.0,0.37]
[1725975932246,0.009,56913.0,56912.0,0.45785]
[1725975932649,0.009,56913.0,56912.0,0.08785]
[1725975932854,0.009,56913.0,56906.0,0.3027]
[1725975933056,0.087845,56916.0,56910.0,0.087853]
[1725975933553,0.087846,56915.0,56908.0,0.001]
[1725975933748,0.087846,56915.0,56912.0,0.001]
[1725975933749,0.01,56913.0,56912.0,0.001]
[1725975934258,0.37,56925.0,56911.0,0.087851]
[1725975934455,0.008,56916.0,56911.0,0.087851]
[1725975934949,0.007,56913.0,56912.0,0.001]
[1725975935151,0.101848,56913.0,56912.0,0.001]
[1725975935356,1.228968,56913.0,56912.0,0.001]
[1725975935750,0.087861,56905.0,56901.0,0.087866]
[1725975935950,0.007,56913.0,56903.0,0.087864]
[1725975936152,0.087862,56904.0,56894.0,0.1029]
[1725975936351,0.007,56913.0,56899.0,0.37]
[1725975936659,0.47347067,56915.0,56899.0,0.37]
[1725975936660,0.087855,56909.0,56899.0,0.37]
[1725975937349,0.087855,56909.0,56905.0,0.08786]
[1725975937748,0.006,56916.0,56894.0,0.1169]
[1725975937749,0.376,56916.0,56901.0,0.087866]
[1725975937952,0.088862,56905.0,56899.0,0.087869]
[1725975938152,0.088862,56905.0,56902.0,0.087864]
[1725975938153,0.001,56905.0,56902.0,0.087864]
[1725975938351,0.001,56905.0,56899.0,0.378]
[1725975938557,0.001,56905.0,56903.0,0.087863]
[1725975938873,0.001,56909.0,56903.0,0.087863]
[1725975939460,0.087861,56905.0,56899.0,0.378]
[1725975939662,0.088855,56909.0,56905.0,0.087859]
[1725975939965,0.087855,56909.0,56907.0,0.087858]
[1725975940666,0.087856,56908.0,56907.0,0.087858]
[1725975940959,0.087849,56913.0,56910.0,0.087852]
[1725975941163,0.10347067,56921.0,56918.0,0.087841]
[1725975941356,0.087838,56921.0,56918.0,0.087841]
[1725975941664,0.087838,56921.0,56910.0,0.37]
[1725975941665,0.087841,56918.0,56910.0,0.37]
[1725975941854,0.087841,56918.0,56904.0,0.37]
[1725975942056,0.087847,56914.0,56904.0,0.37]
[1725975942260,0.087849,56913.0,56910.0,0.087852]
[1725975942561,0.087849,56913.0,56903.0,0.003]
[1725975942562,0.089857,56908.0,56906.0,0.087858]
[1725975942962,0.002,56908.0,56907.0,0.087858]
[1725975943459,0.617016,56908.0,56899.0,0.087869]
[1725975943662,0.087865,56903.0,56899.0,0.087869]
[1725975943961,0.087865,56903.0,56900.0,0.087868]
[1725975944263,0.087866,56902.0,56900.0,0.087868]
[1725975944463,0.087854,56910.0,56899.0,0.37]
[1725975944659,0.8718,56923.0,56912.0,0.087849]
[1725975944660,0.087847,56914.0,56912.0,0.087849]
[1725975944862,0.087847,56914.0,56909.0,0.37]
[1725975944863,0.087847,56914.0,56913.0,0.087848]
[1725975945160,0.0088,56919.0,56916.0,0.087843]
[1725975945552,0.0088,56919.0,56913.0,0.37]
[1725975945951,0.0088,56919.0,56918.0,0.087841]
[1725975947362,0.109639,56919.0,56918.0,0.001]
[1725975947761,0.121639,56919.0,56918.0,0.001]
[1725975949162,0.123639,56919.0,56918.0,0.001]
[1725975950663,0.0358,56919.0,56918.0,0.088841]
[1725975951766,0.0358,56919.0,56918.0,0.307841]
[1725975951767,0.0228,56919.0,56918.0,0.307841]
[1725975951966,0.0328,56919.0,56918.0,0.308841]
[1725975952870,0.0298,56919.0,56918.0,0.308841]
[1725975954368,0.0268,56919.0,56918.0,0.308841]
[1725975954670,0.0178,56919.0,56918.0,0.308841]
[1725975954858,0.112641,56919.0,56911.0,0.02178665]
[1725975955061,0.112641,56919.0,56918.0,0.001]
[1725975955062,0.110641,56919.0,56918.0,0.001]
[1725975955464,0.22696659,56919.0,56918.0,0.00033844]
[1725975955671,0.22696659,56919.0,56906.0,0.1038]
[1725975955672,0.087854,56910.0,56906.0,0.191658]
[1725975955856,0.087853,56910.0,56908.0,0.087856]
[1725975956264,0.087849,56913.0,56911.0,0.087852]
[1725975956559,0.08785,56912.0,56910.0,0.087852]
[1725975956763,0.02848828,56911.0,56910.0,0.087852]
[1725975956964,0.007,56919.0,56913.0,0.087848]
[1725975956965,0.10403811,56914.0,56913.0,0.087848]
[1725975957264,0.12126895,56921.0,56911.0,0.001]
[1725975957265,0.02848559,56918.0,56911.0,0.001]
[1725975957469,0.12126895,56920.0,56911.0,0.001]
[1725975957470,0.1041076,56912.0,56911.0,0.001]
[1725975957666,0.20911895,56912.0,56911.0,0.001]
[1725975957971,0.15606666,56912.0,56910.0,0.002]
[1725975958170,0.46944546,56911.0,56910.0,0.002]
[1725975958363,0.40943352,56911.0,56910.0,0.002]
[1725975958559,0.40943352,56911.0,56902.0,0.087864]
[1725975958560,0.3889839,56911.0,56902.0,0.087864]
[1725975958760,0.12148959,56905.0,56904.0,0.087862]
[1725975958963,0.08753688,56905.0,56904.0,0.087862]
[1725975959168,0.20902631,56905.0,56897.0,0.0953]
[1725975959373,0.087866,56902.0,56899.0,0.08787]
[1725975959568,0.087866,56902.0,56900.0,0.087869]
[1725975959569,0.08753688,56901.0,56900.0,0.087869]
[1725975960776,0.12148943,56911.0,56907.0,0.087858]
[1725975960972,0.08785,56912.0,56904.0,0.087862]
[1725975960973,0.20934643,56908.0,56904.0,0.087862]
[1725975961172,0.0878399,56907.0,56904.0,0.087862]